fUST/lending_fUST_20250716
["ID","MTS","AMOUNT","RATE_DAILY","PERIOD"]
[372354471,1752609044805,-460.0,0.00020514,2]
[372354473,1752609044814,-549.33863428,0.00020514,2]
[372354475,1752609044824,-204.28,0.00020514,2]
[372354477,1752609044834,-460.0,0.00020514,2]
[372354479,1752609044843,-460.0,0.00020514,2]
[372354481,1752609044853,-903.06,0.00020514,2]
[372354483,1752609044864,-460.0,0.00020514,2]
[372354485,1752609044873,-460.0,0.00020515,2]
[372354487,1752609044883,-460.0,0.00020515,2]
[372354490,1752609044893,-600.05,0.00020515,2]
[372354492,1752609044903,-460.0,0.00020515,2]
[372354494,1752609044913,-1017.01,0.00020515,2]
[372354496,1752609044922,-460.0,0.00020516,2]
[372354498,1752609044931,-460.0,0.00020516,2]
[372354500,1752609044940,-460.0,0.00020516,2]
[372354502,1752609044950,-460.0,0.00020516,2]
[372354503,1752609044959,-460.0,0.00020547,2]
[372354506,1752609044969,-651.78,0.00020547,2]
[372354508,1752609044979,-2118.26,0.00020547,2]
[372354510,1752609044989,-836.03,0.00020547,2]
[372354511,1752609044998,-460.0,0.00020547,2]
[372354513,1752609045007,-460.0,0.00020547,2]
[372354515,1752609045017,-460.0,0.00020547,2]
[372354517,1752609045026,-460.0,0.00020616,2]
[372354519,1752609045036,-316.89227968,0.00020616,2]
[372354521,1752609045045,-151.0,0.00020616,2]
[372354523,1752609045055,-460.0,0.00020616,2]
[372354526,1752609045064,-500.0,0.00020646,2]
[372354528,1752609045073,-258.58723091,0.00020648,2]
[372354530,1752609045083,-429.0948676,0.00020658,2]
[372354531,1752609045092,-429.0948676,0.00020658,2]
[372354534,1752609045101,-428.8045396,0.00020658,2]
[372354536,1752609045111,-181.86,0.00020788,2]
[372354538,1752609045120,-159.28430456,0.00020788,2]
[372354540,1752609045130,-460.0,0.00020788,2]
[372354542,1752609045139,-460.0,0.00020788,2]
[372354544,1752609045148,-460.0,0.00020788,2]
[372354546,1752609045157,-224.82,0.00020788,2]
[372354548,1752609045167,-903.06,0.00020788,2]
[372354550,1752609045176,-460.0,0.00020788,2]
[372354552,1752609045185,-460.0,0.00020789,2]
[372354554,1752609045194,-460.0,0.00020789,2]
[372354556,1752609045203,-600.05,0.00020789,2]
[372354557,1752609045214,-460.0,0.00020789,2]
[372354559,1752609045223,-151.0,0.00020789,2]
[372354561,1752609045235,-1017.01,0.00020789,2]
[372354563,1752609045244,-599.87825853,0.0002079,2]
[372354565,1752609045253,-460.0,0.0002079,2]
[372354567,1752609045263,-460.0,0.0002079,2]
[372354569,1752609045273,-460.0,0.0002079,2]
[372354571,1752609045289,-651.78,0.00020821,2]
[372354574,1752609045301,-2118.26,0.00020821,2]
[372354576,1752609045310,-836.03,0.00020821,2]
[372354577,1752609045321,-460.0,0.00020821,2]
[372354580,1752609045330,-153.06,0.00020821,2]
[372354581,1752609045340,-165.23554543,0.00020821,2]
[372354583,1752609045350,-172.44,0.00020853,2]
[372354585,1752609045361,-527.01,0.00020889,2]
[372354587,1752609045371,-460.0,0.0002089,2]
[372354590,1752609045380,-460.0,0.0002089,2]
[372354591,1752609045389,-160.0,0.00020931,2]
[372354593,1752609045399,-160.0,0.00020931,2]
[372354596,1752609045409,-160.0,0.00020931,2]
[372354598,1752609045418,-468.75,0.00020931,2]
[372354600,1752609045427,-160.0,0.00020931,2]
[372354602,1752609045436,-838.84061749,0.00020931,2]
[372354604,1752609045447,-230.76969291,0.00020931,2]
[372354606,1752609045456,-520.84375,0.00020931,2]
[372354608,1752609045466,-2000.0,0.00021,2]
[372354610,1752609045475,-500.0,0.00021061,2]
[372354611,1752609045485,-460.0,0.00021062,2]
[372354614,1752609045495,-460.0,0.00021062,2]
[372354616,1752609045504,-903.06,0.00021062,2]
[372354617,1752609045513,-460.0,0.00021062,2]
[372354619,1752609045523,-460.0,0.00021063,2]
[372354621,1752609045532,-460.0,0.00021063,2]
[372354624,1752609045541,-600.05,0.00021063,2]
[372354625,1752609045551,-460.0,0.00021063,2]
[372354627,1752609045560,-1017.01,0.00021063,2]
[372354629,1752609045570,-460.0,0.00021064,2]
[372354632,1752609045580,-651.78,0.00021095,2]
[372354633,1752609045590,-2118.26,0.00021095,2]
[372354636,1752609045599,-836.03,0.00021095,2]
[372354637,1752609045609,-460.0,0.00021095,2]
[372354639,1752609045619,-848.95,0.000211,2]
[372354642,1752609045629,-642.07863076,0.000212,2]
[372354644,1752609045638,-306.98,0.00021328,3]
[372354645,1752609045647,-460.0,0.00021336,2]
[372354647,1752609045657,-460.0,0.00021336,2]
[372354649,1752609045666,-903.06,0.00021336,2]
[372354651,1752609045676,-460.0,0.00021336,2]
[372354653,1752609045685,-151.0,0.00021337,2]
[372354655,1752609045695,-460.0,0.00021337,2]
[372354657,1752609045704,-460.0,0.00021337,2]
[372354659,1752609045713,-600.05,0.00021337,2]
[372354661,1752609045723,-460.0,0.00021337,2]
[372354663,1752609045734,-1017.01,0.00021337,2]
[372354665,1752609045743,-460.0,0.00021338,2]
[372354667,1752609045752,-473.35105,0.00021338,2]
[372354669,1752609045762,-651.78,0.00021369,2]
[372354671,1752609045771,-1350.92068426,0.00021369,2]
[372354674,1752609045783,-315.49053246,0.00021369,2]
[372354775,1752609046629,-460.0,0.00019967,2]
[372354778,1752609046640,-460.0,0.0002024,2]
[372354780,1752609046650,-460.0,0.00020241,2]
[372354782,1752609046659,-460.0,0.00020515,2]
[372354784,1752609046669,-460.0,0.00020789,2]
[372354786,1752609046679,-460.0,0.00021063,2]
[372354788,1752609046689,-451.84878328,0.00021369,2]
[372354790,1752609046699,-836.03,0.00021369,2]
[372354792,1752609046712,-460.0,0.00021369,2]
[372354794,1752609046722,-500.0,0.00021437,2]
[372354796,1752609046733,-151.0,0.00021438,2]
[372354798,1752609046742,-473.52757,0.00021438,2]
[372354800,1752609046752,-336.01653731,0.00021438,2]
[372354802,1752609046765,-137.51103269,0.00021438,2]
[372354805,1752609046774,-151.0,0.00021438,2]
[372354807,1752609046783,-208.19,0.0002161,2]
[372354809,1752609046792,-218.86067981,0.0002161,2]
[372354811,1752609046803,-481.595,0.0002161,2]
[372354813,1752609046815,-202.60432019,0.0002161,2]
[372354815,1752609046824,-460.0,0.0002161,2]
[372354817,1752609046833,-460.0,0.00021611,2]
[372354819,1752609046845,-600.05,0.00021611,2]
[372354821,1752609046857,-460.0,0.00021611,2]
[372354823,1752609046866,-151.0,0.00021611,2]
[372354825,1752609046875,-1017.01,0.00021611,2]
[372354828,1752609046885,-460.0,0.00021612,2]
[372354830,1752609046895,-151.0,0.00021616,2]
[372354832,1752609046905,-651.78,0.00021643,2]
[372354834,1752609046914,-2118.26,0.00021643,2]
[372354836,1752609046924,-836.03,0.00021643,2]
[372354838,1752609046934,-483.94,0.00021643,2]
[372354840,1752609046943,-420.0,0.0002174,2]
[372354842,1752609046952,-207.4,0.00021843,2]
[372354844,1752609046962,-244.0,0.00021845,2]
[372354846,1752609046972,-903.06,0.00021884,2]
[372354848,1752609046983,-460.0,0.00021884,2]
[372354850,1752609046993,-460.0,0.00021885,2]
[372354852,1752609047001,-600.05,0.00021885,2]
[372354854,1752609047010,-460.0,0.00021885,2]
[372354856,1752609047020,-1017.01,0.00021885,2]
[372354858,1752609047029,-460.0,0.00021886,2]
[372354860,1752609047038,-150.0,0.000219,2]
[372354862,1752609047047,-651.78,0.00021917,2]
[372354864,1752609047057,-2118.26,0.00021917,2]
[372354866,1752609047065,-836.03,0.00021917,2]
[372354868,1752609047074,-1668.13,0.0002199,10]
[372354870,1752609047084,-527.01,0.00021999,2]
[372354872,1752609047093,-500.0,0.00021999,2]
[372354874,1752609047103,-8775.17,0.00022,7]
[372354876,1752609047112,-151.0,0.00022,7]
[372354878,1752609047121,-172.0,0.00022,2]
[372354880,1752609047130,-903.06,0.00022158,2]
[372354882,1752609047139,-460.0,0.00022158,2]
[372354884,1752609047148,-236.24805557,0.00022159,2]
[372354886,1752609047160,-223.75194443,0.00022159,2]
[372354888,1752609047169,-237.58214937,0.00022159,2]
[372355099,1752609049204,156.27554613,0.00018963,2]
[372355137,1752609049571,467.81754567,0.00019178,2]
[372356475,1752609063794,1147.4,0.00019178,2]
[372356535,1752609064420,1147.4,0.00019452,2]
[372357472,1752609082050,460.0,0.00019178,2]
[372357473,1752609082314,460.0,0.00019452,2]
[372357474,1752609082786,460.0,0.00019178,2]
[372357475,1752609087805,476.63845343,0.00019178,2]
[372357476,1752609093309,460.0,0.00019178,2]
[372357477,1752609095165,460.0,0.00019178,2]
[372357478,1752609101458,460.0,0.00019178,2]
[372357479,1752609113431,461.67256005,0.00019178,2]
[372357480,1752609114127,460.0,0.00019178,2]
[372357481,1752609124017,202.18805607,0.00019078,2]
[372357482,1752609126686,460.0,0.00019178,2]
[372357483,1752609138990,500.0,0.00019178,2]
[372357484,1752609139276,318.70596529,0.00019178,2]
[372357485,1752609139304,181.29403471,0.00019178,2]
[372357486,1752609154689,460.0,0.00019178,2]
[372357487,1752609159140,460.0,0.00019178,2]
[372357488,1752609161019,385.67780496,0.00019178,2]
[372357489,1752609169874,460.0,0.00019178,2]
[372357490,1752609175995,318.380128,0.00013699,2]
[372357491,1752609178981,460.0,0.00019178,2]
[372357493,1752609180871,460.0,0.00019178,2]
[372357494,1752609186098,535.01,0.00019178,2]
[372357495,1752609186132,460.0,0.00019178,2]
[372357496,1752609188069,460.0,0.00019178,2]
[372357497,1752609190125,460.0,0.00019178,2]
[372357498,1752609190315,460.0,0.00019178,2]
[372357499,1752609194760,460.0,0.00019178,2]
[372357500,1752609196830,460.0,0.00019178,2]
[372357501,1752609199134,460.0,0.00019178,2]
[372357502,1752609204420,460.0,0.00019178,2]
[372357503,1752609205572,571.99,0.00019178,2]
[372357504,1752609206547,460.0,0.00019178,2]
[372357505,1752609208642,460.0,0.00019178,2]
[372357506,1752609211513,460.0,0.00019178,2]
[372357507,1752609217309,460.0,0.00019178,2]
[372357508,1752609222183,187.64803233,0.00019178,2]
[372357509,1752609222215,335.01196767,0.00019178,2]
[372357510,1752609223339,460.0,0.00019178,2]
[372357511,1752609225306,460.0,0.00019178,2]
[372357512,1752609226817,314.23696453,0.00019178,2]
[372357513,1752609227486,666.0,0.00019366,2]
[372357514,1752609234663,460.0,0.00019178,2]
[372357515,1752609235260,460.0,0.00019178,2]
[372357516,1752609237924,460.0,0.00019178,2]
[372357517,1752609240141,898.93,0.00019178,2]
[372357518,1752609240393,898.93,0.00019452,2]
[372357519,1752609241073,460.0,0.00019178,2]
[372357520,1752609241503,460.0,0.00019178,2]
[372357521,1752609243056,460.0,0.00019178,2]
[372357522,1752609245276,460.0,0.00019178,2]
[372357523,1752609252929,578.53464159,0.00019178,2]
[372357524,1752609257440,523.47508925,0.00019178,2]
[372357525,1752609258193,460.0,0.00019178,2]
[372357526,1752609260359,249.57498751,0.00019367,2]
[372357527,1752609261931,460.0,0.00019178,2]
[372357528,1752609262219,460.0,0.00019452,2]
[372357529,1752609263912,15.30634945,0.00019178,2]
[372357530,1752609263938,444.69365055,0.00019178,2]
[372357531,1752609267338,460.0,0.00019178,2]
[372357532,1752609269275,460.0,0.00019178,2]
[372357533,1752609269679,460.0,0.00019178,2]
[372357534,1752609271791,460.0,0.00019178,2]
[372357535,1752609272149,467.01044138,0.00019452,2]
[372357536,1752609274123,460.0,0.00019178,2]
[372357537,1752609274380,460.0,0.00019452,2]
[372357538,1752609274609,460.0,0.00019178,2]
[372357539,1752609276507,460.0,0.00019178,2]
[372357540,1752609278118,460.0,0.00019178,2]
[372357541,1752609279070,460.0,0.00019178,2]
[372357542,1752609291168,460.0,0.00019178,2]
[372357543,1752609303733,460.0,0.00019178,2]
[372357544,1752609305034,460.0,0.00019178,2]
[372357545,1752609305987,460.0,0.00019178,2]
[372357546,1752609309802,460.0,0.00019178,2]
[372357547,1752609324588,460.0,0.00019178,2]
[372357548,1752609327038,460.0,0.00019178,2]
[372357549,1752609330329,460.0,0.00019178,2]
[372357550,1752609330907,460.0,0.00019452,2]
[372357551,1752609337339,348.29590807,0.00019178,2]
[372357552,1752609337371,111.70409193,0.00019178,2]
[372357553,1752609339147,460.0,0.00019178,2]
[372357554,1752609341483,1051.78,0.00019178,2]
[372357555,1752609341769,1051.78,0.00019452,2]
[372357556,1752609352495,150.0,0.000189,2]
[372357557,1752609359293,460.0,0.00019178,2]
[372357558,1752609370401,6714.73590807,0.00018975,2]
[372357559,1752609370427,10000.0,0.00018975,2]
[372357560,1752609370450,8185.26409193,0.00018975,2]
[372357561,1752609379563,460.0,0.00019178,2]
[372357562,1752609395692,460.0,0.00019178,2]
[372357563,1752609399828,894.73590807,0.00019338,2]
[372357564,1752609399852,1057.13509893,0.00019338,2]
[372357565,1752609401185,460.0,0.00019178,2]
[372357566,1752609402468,460.0,0.00019178,2]
[372357567,1752609405985,460.0,0.00019178,2]
[372357568,1752609413671,599.87825853,0.00019452,2]
[372357569,1752609413991,460.0,0.00019178,2]
[372357570,1752609414609,460.0,0.00019178,2]
[372357571,1752609416074,460.0,0.00019178,2]
[372357572,1752609416392,460.0,0.00019452,2]
[372357573,1752609418815,460.0,0.00019178,2]
[372357574,1752609419671,152.88070772,0.00019178,2]
[372357575,1752609424424,460.0,0.00019178,2]
[372357576,1752609424707,460.0,0.00019452,2]
[372357577,1752609427370,460.0,0.00019178,2]
[372357578,1752609428545,546.39,0.00019178,2]
[372357579,1752609435049,460.0,0.00019178,2]
[372357580,1752609438540,824.02,0.00019178,2]
[372357581,1752609438832,824.02,0.00019452,2]
[372357582,1752609444258,460.0,0.00019178,2]
[372357583,1752609444522,15.67593482,0.00019452,2]
[372357584,1752609444550,149.49911052,0.00019452,2]
[372357585,1752609454224,460.0,0.00019178,2]
[372357586,1752609454956,460.0,0.00019178,2]
[372357587,1752609464680,5000.0,0.000195,2]
[372357588,1752609465575,599.87825853,0.000195,2]
[372357589,1752609465788,460.0,0.00019178,2]
[372357590,1752609472021,460.0,0.00019178,2]
[372357591,1752609472180,460.0,0.00019178,2]
[372357592,1752609472269,556.4,0.00019452,2]
[372357593,1752609472493,460.0,0.00019452,2]
[372357594,1752609478390,460.0,0.00019178,2]
[372357595,1752609478884,216.01711023,0.00019178,2]
[372357596,1752609480576,258.20552072,0.00019178,2]
[372357597,1752609480609,201.79447928,0.00019178,2]
[372357598,1752609480824,460.0,0.00019452,2]
[372357599,1752609480861,2863.47785037,0.000195,2]
[372357600,1752609490595,460.0,0.00019178,2]
[372357601,1752609511503,460.0,0.00019178,2]
[372357602,1752609514685,460.0,0.00019178,2]
[372357603,1752609516870,786.91,0.00019178,2]
[372357604,1752609517144,786.91,0.00019452,2]
[372357605,1752609522330,3520.90767035,0.00019338,2]
[372357606,1752609522354,6479.09232965,0.00019338,2]
[372357607,1752609522737,460.0,0.00019178,2]
[372357608,1752609526651,460.0,0.00019178,2]
[372357609,1752609536787,460.0,0.00019178,2]
[372357610,1752609539050,460.0,0.00019178,2]
[372357611,1752609540629,460.0,0.00019178,2]
[372357612,1752609547722,460.0,0.00019178,2]
[372357613,1752609547979,460.0,0.00019452,2]
[372357614,1752609562808,300.90767035,0.00019178,2]
[372357615,1752609562834,159.09232965,0.00019178,2]
[372357616,1752609562865,460.0,0.00019178,2]
[372357617,1752609564013,460.0,0.00019452,2]
[372357618,1752609571630,614.5010759,0.00019178,2]
[372357619,1752609576646,460.0,0.00019178,2]
[372357620,1752609581951,460.0,0.00019178,2]
[372357621,1752609592772,460.0,0.00019178,2]
[372357622,1752609611611,500.0,0.00019178,2]
[372357623,1752609622378,460.0,0.00019178,2]
[372357624,1752609622747,460.0,0.00019452,2]
[372357625,1752609624084,460.0,0.00019178,2]
[372357626,1752609644301,169.18092846,0.0001941,2]
[372357627,1752609654455,150.0,0.000189,2]
[372357628,1752609666856,460.0,0.00019178,2]
[372357629,1752609682587,460.0,0.00019178,2]
[372357630,1752609682844,460.0,0.00019452,2]
[372357631,1752609697882,460.0,0.00019178,2]
[372357632,1752609698261,460.0,0.00019178,2]
[372357633,1752609700553,265.25136343,0.00019178,2]
[372357634,1752609702528,460.0,0.00019178,2]
[372357635,1752609719050,460.0,0.00019178,2]
[372357636,1752609726736,1016.75,0.000238,60]
[372357637,1752609728153,721.34,0.00019178,2]
[372357638,1752609728330,520.63430256,0.00019452,2]
[372357639,1752609728355,200.70569744,0.00019452,2]
[372357640,1752609741151,460.0,0.00019178,2]
[372357641,1752609751848,460.0,0.00019178,2]
[372357642,1752609752081,460.0,0.00019452,2]
[372357643,1752609757939,5552.6269629,0.0001891,2]
[372357644,1752609772048,460.0,0.00019178,2]
[372357645,1752609787758,460.0,0.00019178,2]
[372357646,1752609787992,460.0,0.00019452,2]
[372357647,1752609789525,460.0,0.00019178,2]
[372357648,1752609802511,460.0,0.00019178,2]
[372357649,1752609802685,460.0,0.00019452,2]
[372357650,1752609805707,106.66733966,0.00019178,2]
[372357651,1752609805734,353.33266034,0.00019178,2]
[372357652,1752609818458,9646.66733966,0.00018903,2]
[372357653,1752609818482,10000.0,0.00018903,2]
[372357654,1752609818509,642.01893594,0.00018903,2]
[372357655,1752609823289,460.0,0.00019178,2]
[372357656,1752609845548,460.0,0.00019178,2]
[372357657,1752609851606,460.0,0.00019178,2]
[372357658,1752609872366,460.0,0.00019178,2]
[372357659,1752609893666,460.0,0.00019178,2]
[372357660,1752609894666,207.5013673,0.00018903,2]
[372357661,1752609899060,645.7586102,0.00019338,2]
[372357662,1752609899284,460.0,0.00019178,2]
[372357663,1752609910182,565.16000076,0.00019178,2]
[372357664,1752609946134,-300.0,0.00019725,2]
[372357665,1752609946157,-300.0,0.00019725,2]
[372357666,1752609946178,-300.0,0.00019725,2]
[372357667,1752609946199,-300.0,0.00019725,2]
[372357668,1752609946224,-262.35026944,0.00019725,2]
[372357669,1752609954108,-698.91448462,0.00019725,2]
[372357670,1752610009469,179.182276,0.00019492,2]
[372357671,1752610009698,179.182276,0.00019492,120]
[372357672,1752610027090,-216.19505471,0.00019625,2]
[372357673,1752610027111,-238.73524594,0.00019725,2]
[372357674,1752610027132,-300.0,0.00019725,2]
[372357675,1752610027151,-37.57390252,0.00019725,2]
[372357676,1752610040789,1117.9972665,0.0001891,2]
[372357677,1752610050707,1110.8645935,0.0001891,2]
[372357678,1752610054042,-1162.42609748,0.00019725,2]
[372357679,1752610054067,-460.0,0.00019726,2]
[372357680,1752610054090,-460.0,0.00019726,2]
[372357681,1752610054114,-3957.36335942,0.00019726,2]
[372357682,1752610054136,-185.16978352,0.000198,2]
[372357683,1752610054160,-185.16978351,0.00019865,2]
[372357684,1752610054183,-254.27759285,0.00019865,2]
[372357685,1752610054205,-207.4,0.00019954,2]
[372357686,1752610054228,-301.99383105,0.00019964,2]
[372357687,1752610058906,516.52153986,0.00019178,2]
[372357688,1752610058945,460.0,0.00019178,2]
[372357689,1752610077985,460.0,0.00019178,2]
[372357690,1752610084302,460.0,0.00019178,2]
[372357691,1752610084549,460.0,0.00019452,2]
[372357692,1752610106859,166.519718,0.00019178,2]
[372357693,1752610111181,248.47569194,0.00019178,2]
[372357694,1752610111205,211.52430806,0.00019178,2]
[372357695,1752610152867,460.0,0.00019178,2]
[372357696,1752610191754,460.0,0.00019178,2]
[372357698,1752610202879,460.0,0.00019178,2]
[372357699,1752610204673,429.86818,0.00013699,2]
[372357700,1752610207697,460.0,0.00019178,2]
[372357701,1752610214857,460.0,0.00019178,2]
[372357702,1752610220745,500.0,0.00019178,2]
[372357703,1752610221019,500.0,0.00019178,2]
[372357704,1752610221259,500.0,0.00019451,2]
[372357705,1752610226873,460.0,0.00019178,2]
[372357706,1752610228905,460.0,0.00019178,2]
[372357718,1752610232849,-169.08266623,0.00019864,2]
[372357720,1752610232859,-222.49289377,0.00019865,2]
[372357722,1752610232868,-169.08266623,0.00019865,2]
[372357724,1752610232878,-207.4,0.00019954,2]
[372357725,1752610232888,-43.25426113,0.00019963,2]
[372357727,1752610232902,-256.74573887,0.00019963,2]
[372357728,1752610232911,-300.0,0.00019963,2]
[372357730,1752610232921,-158.00616895,0.00019964,2]
[372357732,1752610232930,-460.0,0.00019964,2]
[372357734,1752610232939,-460.0,0.00019964,2]
[372357735,1752610232949,-460.0,0.00019964,2]
[372357736,1752610232959,-460.0,0.00019964,2]
[372357738,1752610232968,-460.0,0.00019964,2]
[372357740,1752610232979,-460.0,0.00019964,2]
[372357742,1752610232988,-379.88597697,0.00019964,2]
[372357744,1752610233001,-80.11402303,0.00019964,2]
[372357746,1752610233010,-460.0,0.00019964,2]
[372357747,1752610233020,-517.92026842,0.00019964,2]
[372357748,1752610233029,-463.29777052,0.00019964,2]
[372357749,1752610233038,-460.0,0.00019964,2]
[372357750,1752610233048,-460.0,0.00019964,2]
[372357751,1752610233057,-460.0,0.00019964,2]
[372357752,1752610233067,-440.03700064,0.00019964,2]
[372357753,1752610233076,-460.0,0.00019964,2]
[372357754,1752610233085,-460.0,0.00019964,2]
[372357755,1752610233095,-194.80513745,0.00019964,2]
[372357756,1752610233104,-460.41031252,0.00019964,2]
[372357757,1752610233114,-460.0,0.00019964,2]
[372357758,1752610233123,-460.0,0.00019964,2]
[372357759,1752610233132,-460.0,0.00019964,2]
[372357760,1752610233142,-460.0,0.00019965,2]
[372357761,1752610233152,-460.0,0.00019965,2]
[372357762,1752610233161,-460.0,0.00019965,2]
[372357763,1752610233171,-460.0,0.00019965,2]
[372357764,1752610233181,-463.17609416,0.00019965,2]
[372357765,1752610233191,-460.0,0.00019965,2]
[372357766,1752610233201,-460.0,0.00019965,2]
[372357767,1752610233215,-460.0,0.00019965,2]
[372357768,1752610233225,-460.0,0.00019965,2]
[372357769,1752610233234,-460.0,0.00019965,2]
[372357770,1752610233243,-460.0,0.00019965,2]
[372357771,1752610233253,-460.0,0.00019965,2]
[372357772,1752610233262,-460.13997826,0.00019965,2]
[372357773,1752610233272,-460.0,0.00019965,2]
[372357774,1752610233282,-460.0,0.00019965,2]
[372357775,1752610233291,-460.0,0.00019965,2]
[372357776,1752610233301,-460.0,0.00019965,2]
[372357777,1752610233310,-460.0,0.00019965,2]
[372357778,1752610233320,-460.0,0.00019965,2]
[372357779,1752610233329,-460.0,0.00019965,2]
[372357780,1752610233339,-460.0,0.00019965,2]
[372357781,1752610233348,-573.69779953,0.00019965,2]
[372357782,1752610233358,-460.0,0.00019965,2]
[372357783,1752610233368,-460.0,0.00019965,2]
[372357784,1752610233380,-460.0,0.00019965,2]
[372357785,1752610233389,-460.0,0.00019965,2]
[372357786,1752610233399,-460.0,0.00019965,2]
[372357787,1752610233409,-413.89650142,0.00019965,2]
[372357788,1752610233419,-550.42758763,0.00019965,2]
[372357789,1752610233428,-460.0,0.00019965,2]
[372357790,1752610233438,-460.0,0.00019965,2]
[372357791,1752610233447,-460.0,0.00019965,2]
[372357792,1752610233457,-460.0,0.00019965,2]
[372357793,1752610233466,-460.0,0.00019965,2]
[372357794,1752610233476,-460.0,0.00019965,2]
[372357795,1752610233486,-460.0,0.00019965,2]
[372357796,1752610233496,-344.90372912,0.00019965,2]
[372357803,1752610238683,-115.09627088,0.00019965,2]
[372357804,1752610238692,-460.0,0.00019965,2]
[372357805,1752610238703,-606.62548431,0.00019965,2]
[372357806,1752610238713,-283.87914865,0.00019965,2]
[372357807,1752610238723,-460.0,0.00019965,2]
[372357809,1752610238732,-460.0,0.00019965,2]
[372357811,1752610238742,-460.0,0.00019965,2]
[372357813,1752610238751,-460.0,0.00019965,2]
[372357815,1752610238762,-460.0,0.00019965,2]
[372357817,1752610238772,-460.0,0.00019965,2]
[372357819,1752610238781,-460.0,0.00019965,2]
[372357821,1752610238791,-460.0,0.00019965,2]
[372357823,1752610238800,-460.0,0.00019965,2]
[372357825,1752610238810,-500.0,0.00019965,2]
[372357827,1752610238819,-460.0,0.00019965,2]
[372357829,1752610238829,-460.0,0.00019965,2]
[372357831,1752610238838,-460.0,0.00019965,2]
[372357833,1752610238848,-460.0,0.00019965,2]
[372357835,1752610238858,-460.0,0.00019965,2]
[372357837,1752610238867,-682.37825233,0.00019965,2]
[372357839,1752610238880,-281.75174767,0.00019965,2]
[372357840,1752610238889,-870.08,0.00019965,2]
[372357841,1752610238899,-460.0,0.00019965,2]
[372357842,1752610238909,-460.0,0.00019965,2]
[372357843,1752610238918,-460.0,0.00019965,2]
[372357844,1752610238928,-460.0,0.00019965,2]
[372357845,1752610238937,-500.0,0.00019965,2]
[372357846,1752610238946,-460.0,0.00019965,2]
[372357847,1752610238955,-460.0,0.00019965,2]
[372357848,1752610238966,-460.0,0.00019965,2]
[372357849,1752610238975,-460.0,0.00019965,2]
[372357850,1752610238984,-460.0,0.00019965,2]
[372357851,1752610238994,-460.0,0.00019965,2]
[372357852,1752610239004,-305.25448484,0.00019965,2]
[372357853,1752610239015,-460.0,0.00019965,2]
[372357854,1752610239024,-460.0,0.00019965,2]
[372357855,1752610239034,-460.0,0.00019965,2]
[372357856,1752610239044,-460.0,0.00019965,2]